bitfinex/quotes_ETHUSD_20250415
["timestamp","ask_amount","ask_price","bid_price","bid_amount"]
[1744684477871,0.7653,1621.7,1621.4,0.5365]
[1744684478043,6.16638,1621.7,1621.4,0.5365]
[1744684478244,6.16638,1621.7,1621.4,6.70394]
[1744684478476,6.16614,1621.8,1621.4,6.76549572]
[1744684478677,6.16614,1621.8,1621.5,6.16712]
[1744684479190,6.16614,1621.8,1621.5,6.22878535]
[1744684479493,13.09416,1621.9,1621.5,6.22862535]
[1744684479675,13.09416,1621.9,1621.5,6.16696]
[1744684479898,6.1661,1621.8,1621.5,3.0]
[1744684480201,6.16649,1621.7,1621.5,3.0]
[1744684480914,12.33316,1621.7,1621.4,3.5365]
[1744684481145,6.1669,1621.6,1621.2,6.70462]
[1744684481419,6.1669,1621.6,1621.3,9.2295426]
[1744684482116,6.1669,1621.6,1621.3,9.16787]
[1744684482320,6.1669,1621.6,1621.3,9.22954262]
[1744684482777,6.1669,1621.6,1621.3,3.06167262]
[1744684484308,6.1669,1621.6,1621.3,9.22953262]
[1744684484802,6.16638,1621.7,1621.3,9.22939262]
[1744684485024,13.08377,1621.8,1621.4,6.16732]
[1744684485725,6.16639,1621.7,1621.4,6.16732]
[1744684486020,6.16714,1621.5,1621.3,3.0]
[1744684486197,6.16648,1621.7,1621.3,9.1677]
[1744684486376,6.16687,1621.6,1621.3,9.1677]
[1744684486577,12.33388,1621.6,1621.3,3.0]
[1744684486877,6.16687,1621.6,1621.3,3.0]
[1744684488721,12.33312,1621.7,1621.3,15.33555]
[1744684488894,6.16638,1621.7,1621.3,9.16771]
[1744684489221,6.16638,1621.7,1621.4,6.16733]
[1744684489422,12.333,1621.7,1621.3,9.16771]
[1744684490428,6.16683,1621.6,1621.3,9.16771]
[1744684491417,12.33382,1621.6,1621.3,3.0]
[1744684491622,6.16683,1621.6,1621.3,9.16786]
[1744684492232,6.91754,1621.8,1621.2,0.5365]
[1744684492507,6.16736,1621.5,1621.2,0.5365]
[1744684492897,6.16681,1621.6,1621.2,6.7046]
[1744684493100,6.16681,1621.6,1621.3,6.22939496]
[1744684493280,6.16681,1621.6,1621.3,12.39711496]
[1744684493480,6.16681,1621.6,1621.3,12.33544]
[1744684493717,0.7515,1621.8,1621.4,6.22903144]
[1744684493913,6.16632,1621.8,1621.5,6.70358]
[1744684494322,6.16632,1621.8,1621.5,6.76524422]
[1744684495039,6.16632,1621.8,1621.5,6.70362]
[1744684495330,6.16632,1621.8,1621.5,0.5365]
[1744684495739,12.33252,1621.8,1621.5,0.5365]
[1744684496233,6.1662,1621.8,1621.5,0.5365]
[1744684496439,6.1662,1621.8,1621.5,0.59816432]
[1744684496737,6.1662,1621.8,1621.5,0.5365]
[1744684497136,6.16561,1621.9,1621.5,6.70356]
[1744684497342,6.95261,1622.0,1621.6,6.22826432]
[1744684497503,13.11817,1622.0,1621.6,6.1666]
[1744684497834,6.16566,1621.9,1621.6,6.1666]
[1744684499845,13.11807,1622.0,1621.6,6.1666]
[1744684500224,6.16561,1621.9,1621.6,6.1666]
[1744684501337,13.11814,1622.0,1621.6,6.1666]
[1744684501501,13.11814,1622.0,1621.6,6.63024392]
[1744684501907,6.16564,1621.9,1621.6,6.63024392]
[1744684502103,6.16602,1621.8,1621.4,9.16749]
[1744684502528,12.33234,1621.8,1621.4,9.16749]
[1744684502730,6.16712,1621.5,1621.4,3.0]
[1744684503042,6.93049,1621.5,1621.2,6.16825]
[1744684503226,0.7633,1621.5,1621.2,6.16825]
[1744684503614,12.33381,1621.6,1621.2,12.39788645]
[1744684503615,6.93013,1621.6,1621.2,12.39788645]
[1744684503845,6.93013,1621.6,1621.2,12.33621]
[1744684504003,6.16642,1621.7,1621.3,6.22936302]
[1744684504207,0.8272,1621.8,1621.4,6.70383]
[1744684504407,0.8272,1621.8,1621.5,6.16697]
[1744684504944,13.1587,1621.9,1621.5,6.16697]
[1744684505243,6.166,1621.8,1621.5,6.16697]
[1744684505437,12.33223,1621.8,1621.5,3.0]
[1744684506846,6.16665,1621.7,1621.5,3.0]
[1744684507037,6.16702,1621.6,1621.2,6.70467]
[1744684507230,6.99422,1621.6,1621.2,6.70456]
[1744684507738,6.99422,1621.6,1621.2,12.8727]
[1744684508231,6.99422,1621.6,1621.3,6.16783]
[1744684510458,0.7597,1621.8,1621.5,6.16709]
[1744684510752,6.9259,1621.8,1621.4,6.16741]
[1744684511054,13.09215,1621.8,1621.4,6.16741]
[1744684511444,6.96705,1622.0,1621.6,6.16652]
[1744684511824,6.16567,1621.9,1621.6,6.16652]
[1744684512458,13.13256,1622.0,1621.6,6.16652]
[1744684512837,13.13256,1622.0,1621.6,6.22817872]
[1744684513152,6.1657,1621.9,1621.6,6.16652]
[1744684513556,6.1657,1621.9,1621.6,6.62547342]
[1744684514473,6.1657,1621.9,1621.6,0.45895342]
[1744684514675,12.33151,1621.9,1621.5,6.70357]
[1744684514869,6.1657,1621.9,1621.5,6.70357]
[1744684515162,6.16628,1621.8,1621.5,3.0]
[1744684515921,6.16628,1621.8,1621.5,9.16698]
[1744684516831,12.33259,1621.8,1621.5,3.0]
[1744684517232,0.7958,1621.7,1621.5,9.16712]
[1744684517539,6.96208,1621.8,1621.5,9.16712]
[1744684517840,6.96203,1621.8,1621.5,3.0]
[1744684518956,6.96203,1621.8,1621.5,9.16707]
[1744684519361,6.16623,1621.8,1621.5,9.16707]
[1744684519951,13.15361,1621.9,1621.5,9.16707]
[1744684520569,6.98787,1621.9,1621.5,15.334]
[1744684521229,6.98787,1621.9,1621.5,15.33386]
[1744684521434,6.98787,1621.9,1621.6,6.70311]
[1744684522133,6.98787,1621.9,1621.6,7.16004704]
[1744684522865,6.16567,1621.9,1621.6,7.16004704]
[1744684523065,0.8015,1622.2,1621.9,6.16555]
[1744684523368,6.16432,1622.3,1622.0,3.0]
[1744684523532,6.16383,1622.4,1622.0,9.16516]
[1744684524450,12.32787,1622.4,1622.0,9.16516]
[1744684524846,6.96487,1622.5,1622.1,6.16447]
[1744684525065,6.97563,1622.6,1622.2,6.16433]
[1744684525266,6.4771,1622.7,1622.3,6.16394]
[1744684525472,6.16223,1622.8,1622.4,12.86354]
[1744684525769,6.16223,1622.8,1622.4,6.69997]
[1744684526383,6.16223,1622.8,1622.4,12.86346]
[1744684526539,6.94158,1623.0,1622.6,6.16294]
[1744684526943,0.7801,1623.0,1622.4,0.5365]
[1744684527254,6.16232,1622.8,1622.4,9.70014]
[1744684527642,6.16232,1622.8,1622.4,9.69997]
[1744684527837,6.16232,1622.8,1622.5,6.16328]
[1744684528086,6.1618,1622.9,1622.5,12.32636]
[1744684528289,6.94157,1623.0,1622.6,6.6993]
[1744684528441,13.10326,1623.0,1622.6,6.6993]
[1744684528773,6.14987214,1622.9,1622.6,0.5365]
[1744684528972,6.14987214,1622.9,1622.6,6.69943]
[1744684529271,6.94157,1623.0,1622.6,7.15066888]
[1744684529478,6.94157,1623.0,1622.6,13.31340888]
[1744684529854,6.94157,1623.0,1622.5,6.16331]
[1744684529855,6.16212,1622.9,1622.5,6.16331]
[1744684530059,12.32428,1622.9,1622.5,6.16331]
[1744684530260,6.16221,1622.8,1622.5,6.16331]
[1744684530781,6.16327,1622.6,1622.2,0.47344281]
[1744684531084,6.16327,1622.6,1622.2,6.16425]
[1744684531483,0.26499848,1622.5,1622.2,6.16425]
[1744684532870,0.26499848,1622.5,1622.2,12.32855]
[1744684533184,6.16327,1622.6,1622.2,12.32855]
[1744684533482,0.26844191,1622.5,1622.2,12.32855]
[1744684533697,6.16327,1622.6,1622.3,6.16398]
[1744684534068,6.16229,1622.8,1622.4,6.7]
[1744684534271,0.26844191,1622.7,1622.5,6.16298]
[1744684534471,6.16214,1622.9,1622.5,6.16298]
[1744684534673,0.2686878,1622.8,1622.6,12.32574]
[1744684534860,6.97566,1623.0,1622.6,12.32574]
[1744684535060,0.2686878,1622.9,1622.6,12.32574]
[1744684535261,0.2686878,1622.9,1622.5,6.16328]
[1744684535461,6.4307778,1622.9,1622.5,6.16328]
[1744684535659,6.16235,1622.8,1622.5,3.0]
[1744684536174,0.2686878,1622.7,1622.5,9.16331]
[1744684536766,0.2686878,1622.7,1622.5,3.0]
[1744684537089,6.16296,1622.6,1622.3,6.16405]
[1744684537292,6.92667,1622.7,1622.3,6.16405]
[1744684537587,0.2686878,1622.5,1622.3,6.16405]
[1744684537888,0.2686878,1622.4,1622.3,6.16405]
[1744684538265,13.08947,1622.7,1622.3,6.16405]
[1744684538474,0.2686878,1622.6,1622.3,6.16405]
[1744684538772,6.1632,1622.6,1622.2,6.70092]
[1744684538973,6.4320178,1622.5,1622.2,6.70092]
[1744684539369,12.5956678,1622.5,1622.2,3.0]
[1744684539688,12.5956678,1622.5,1622.1,6.70129]
[1744684539689,6.16378,1622.4,1622.1,6.70129]
[1744684540068,0.26639305,1622.3,1622.1,6.70129]
[1744684540382,6.16378,1622.4,1622.1,6.70129]
[1744684540585,0.26639305,1622.2,1622.1,9.70129]
[1744684540889,0.26639305,1622.2,1622.1,15.86601]
[1744684541200,12.32618,1622.6,1622.2,6.16442]
[1744684543291,6.96437,1622.4,1622.0,6.16522]
[1744684543464,6.9649,1622.3,1621.9,6.16554]
[1744684543789,6.9649,1622.3,1621.9,12.33108]
[1744684544489,6.9649,1622.3,1622.0,6.16515]
[1744684544701,6.9649,1622.3,1622.0,6.63019462]
[1744684547278,6.1645,1622.2,1621.8,9.16595]
[1744684548898,6.16491,1622.1,1621.8,9.16595]
[1744684549595,6.16523,1622.0,1621.7,6.16633]
[1744684549795,0.8062,1622.0,1621.5,6.70362]
[1744684549965,6.97147,1622.0,1621.6,6.16668]
[1744684550297,6.97147,1622.0,1621.7,6.16635]
[1744684550771,6.97147,1622.0,1621.6,6.16668]
[1744684551186,6.16602,1621.8,1621.5,6.62167268]
[1744684551387,6.16728,1621.5,1621.1,6.70511]
[1744684551593,13.09448,1621.7,1621.3,6.16774]
[1744684551779,0.25983414,1621.4,1621.2,10.16811]
[1744684551975,12.33385,1621.6,1621.2,10.16811]
[1744684552180,0.25622482,1621.3,1621.2,13.16811]
[1744684552382,12.33385,1621.6,1621.2,13.16811]
[1744684552586,0.25622482,1621.3,1621.2,13.16811]
[1744684552801,12.33451,1621.5,1621.1,6.70514]
[1744684553004,0.25622482,1621.3,1621.1,6.70514]
[1744684553302,0.25622482,1621.2,1621.1,6.70514]
[1744684553598,12.33451,1621.5,1621.1,10.70514]
[1744684553806,0.25622482,1621.2,1621.0,6.16899]
[1744684553963,6.92845,1621.4,1621.0,0.45817156]
[1744684553964,6.16809,1621.3,1621.0,0.45817156]
[1744684554168,6.16809,1621.3,1621.0,3.0]
[1744684554369,0.2541732,1621.2,1621.0,3.0]
[1744684554621,0.7608,1621.1,1620.5,0.5365]
[1744684554766,6.16944,1620.9,1620.6,4.0]
[1744684554976,6.16944,1620.9,1620.5,12.87797]
[1744684555181,0.25195674,1620.8,1620.5,6.70718]
[1744684555588,0.25195674,1620.8,1620.4,8.74027718]
[1744684555881,0.8211,1620.7,1620.4,6.17129]
[1744684556081,0.25195674,1620.6,1620.5,3.0]
[1744684556307,0.8211,1620.7,1620.3,0.5365]
[1744684556490,0.8211,1620.7,1620.3,0.46889163]
[1744684556807,0.23709909,1620.6,1620.3,6.1715]
[1744684557010,6.9916,1620.7,1620.3,6.63026268]
[1744684557512,0.23709909,1620.6,1620.3,6.63026268]
[1744684557709,6.9916,1620.7,1620.3,6.63026268]
[1744684558010,2.56898718,1621.1,1620.5,8.73991718]
[1744684558011,0.23709909,1620.6,1620.5,8.73991718]
[1744684558209,12.33836,1621.0,1620.5,11.73991718]
[1744684558417,0.23553813,1620.9,1620.5,11.73991718]
[1744684558932,0.23553813,1620.9,1620.5,9.17093]
[1744684559416,6.17025,1620.7,1620.3,6.63019268]
[1744684559612,0.23709909,1620.6,1620.3,6.63019268]
[1744684559997,0.23644189,1620.5,1620.3,6.63019268]
[1744684560314,6.17025,1620.7,1620.3,3.45876268]
[1744684560490,0.23644189,1620.4,1620.2,0.5365]
[1744684560693,6.1708,1620.6,1620.2,6.77011143]
[1744684560910,0.23644189,1620.5,1620.2,6.77011143]
[1744684561104,1.05344189,1620.5,1620.2,6.1719]
[1744684561791,1.05344189,1620.5,1620.2,0.0617115]
[1744684562123,1.05344189,1620.5,1620.2,6.2334815]
[1744684563013,1.05344189,1620.5,1620.1,3.00001]
[1744684563314,6.17146,1620.4,1620.1,1e-05]
[1744684563836,0.23446989,1620.3,1620.1,1e-05]
[1744684564119,6.17146,1620.4,1620.1,1e-05]
[1744684564288,0.2330727,1620.2,1620.1,1e-05]
[1744684564491,6.17146,1620.4,1620.1,0.06172911]
[1744684564689,0.2330727,1620.3,1620.1,0.06172911]
[1744684564900,6.17146,1620.4,1620.1,0.06172911]
[1744684565119,0.2330727,1620.3,1620.1,0.06172911]
[1744684565321,6.17146,1620.4,1620.1,0.06172911]
[1744684565521,0.2330727,1620.2,1620.1,0.06172911]
[1744684565723,6.17146,1620.4,1620.1,0.06172911]
[1744684566018,1.315942,1620.4,1620.1,0.06172911]
[1744684566193,6.98796,1620.5,1620.1,0.06172911]
[1744684566385,6.98796,1620.5,1620.1,6.23417911]
[1744684566592,0.2330727,1620.4,1620.1,6.23417911]
[1744684567425,0.2330727,1620.4,1620.3,6.17169]
[1744684567633,12.70429,1620.7,1620.2,6.70838]
[1744684567838,6.17076,1620.6,1620.2,6.70838]
[1744684568123,6.39997065,1620.6,1620.2,6.70838]
[1744684568288,0.22921065,1620.6,1620.3,6.1715]
[1744684568484,20.145169,1620.7,1620.3,6.1715]
[1744684568724,6.40045817,1620.6,1620.3,6.1715]
[1744684568893,6.40045817,1620.6,1620.2,6.70835]
[1744684569222,6.40045817,1620.6,1620.2,12.8802]
[1744684570124,0.22986817,1620.6,1620.2,9.27747718]
[1744684570302,0.22986817,1620.6,1620.5,6.70743]
[1744684570499,0.773,1621.0,1620.8,6.16974]
[1744684570694,0.21087686,1620.9,1620.6,6.17048]
[1744684570891,6.38033686,1620.9,1620.5,12.34167]
[1744684571109,6.38033686,1620.9,1620.6,6.17044]
[1744684571110,0.21087686,1620.9,1620.6,6.17044]
[1744684571704,0.21087686,1620.9,1620.6,6.17035]
[1744684572224,0.21087686,1620.9,1620.8,6.16979]
[1744684572691,0.21087686,1620.9,1620.7,6.1701]
[1744684573523,6.95801,1620.8,1620.4,6.17129]
[1744684573830,6.38124686,1620.7,1620.3,12.34322]
[1744684574048,0.21087686,1620.7,1620.4,6.17126]
[1744684574196,0.21087686,1620.7,1620.4,6.23281619]
[1744684574396,0.21087686,1620.7,1620.6,6.17055]
[1744684575446,0.7802,1620.9,1620.6,6.17055]
[1744684575596,0.21087686,1620.8,1620.6,6.17055]
[1744684576339,0.21087686,1620.8,1620.6,6.17039]
[1744684576497,0.21087686,1620.8,1620.7,6.17017]
[1744684577055,0.832,1620.7,1620.1,1e-05]
[1744684577198,9.57305718,1620.2,1620.1,1e-05]
[1744684577526,12.19448922,1620.2,1620.1,1e-05]
[1744684577715,12.19448922,1620.2,1619.7,0.4022077]
[1744684577716,6.1736,1619.8,1619.7,0.4022077]
[1744684577913,7.0056,1619.8,1619.7,0.4022077]
[1744684578113,7.20595244,1619.8,1619.7,0.4022077]
[1744684578428,9.11638368,1619.8,1619.7,0.4022077]
[1744684578598,1.03235244,1619.8,1619.7,0.4022077]
[1744684578798,0.20035244,1619.8,1619.7,0.4022077]
[1744684579106,0.7774,1620.0,1619.8,6.17346]
[1744684579433,0.18269752,1619.9,1619.7,0.4022077]
[1744684579636,7.76907727,1619.9,1619.7,0.4022077]
[1744684579811,1.59567727,1619.9,1619.7,0.4022077]
[1744684580129,0.96009752,1619.9,1619.7,0.4022077]
[1744684580428,6.1736,1619.8,1619.7,0.4022077]
[1744684580637,6.35761521,1619.8,1619.7,0.4022077]
[1744684582029,0.18401521,1619.8,1619.7,0.4022077]
[1744684582243,0.18401521,1619.8,1619.7,6.5761877]
[1744684582427,0.7774,1619.9,1619.7,6.5761877]
[1744684582632,0.18401521,1619.8,1619.7,0.4022077]
[1744684582837,0.15236055,1619.8,1619.7,8.13427284]
[1744684583119,0.7738,1620.4,1620.1,6.17226]
[1744684583299,0.14065376,1620.3,1620.1,12.34456]
[1744684583499,6.94515,1620.4,1620.0,12.34544]
[1744684583811,0.14065376,1620.3,1620.0,12.34524]
[1744684584128,6.94515,1620.4,1620.0,12.34524]
[1744684584334,6.31235376,1620.3,1620.0,6.17261]
[1744684584533,0.14065376,1620.3,1620.0,6.17261]
[1744684584699,8.256772,1620.4,1620.0,6.17261]
[1744684584900,0.14065376,1620.3,1620.0,12.34521]
[1744684585217,8.256772,1620.4,1620.0,6.1726]
[1744684585720,6.17245,1620.1,1619.7,6.5760077]
[1744684586112,0.14065376,1620.0,1619.7,6.5759877]
[1744684587647,6.31373376,1620.0,1619.7,0.4022077]
[1744684587855,0.7949,1619.8,1619.7,0.4022077]
[1744684588156,6.9685,1619.8,1619.7,0.4022077]
[1744684588332,8.42334576,1619.8,1619.7,0.4022077]
[1744684593199,0.14065376,1619.8,1619.7,6.5761877]
[1744684593624,12.69174,1620.0,1619.7,6.5761877]
[1744684593832,6.17338,1619.9,1619.7,0.4022077]
[1744684594032,6.31219226,1619.8,1619.7,0.4022077]
[1744684594235,8.32464949,1619.8,1619.7,0.4022077]
[1744684596254,11.36680209,1619.8,1619.7,0.4022077]
[1744684596432,11.36680209,1619.8,1619.1,0.05]
[1744684596433,6.97613,1619.3,1619.1,0.05]
[1744684596634,6.31216313,1619.2,1619.1,0.05]
[1744684596850,7.64099244,1619.2,1619.1,0.05]
[1744684598051,0.13628313,1619.2,1619.1,0.05]
[1744684599752,5.755,1619.4,1619.1,6.22627]
[1744684599967,0.13372566,1619.2,1619.1,0.05]
[1744684600132,6.17564,1619.3,1619.1,0.05]
[1744684600320,0.13372566,1619.2,1619.1,0.05]
[1744684600520,7.07670566,1619.2,1619.1,0.05]
[1744684601915,10.11885826,1619.2,1619.1,0.05]
[1744684602324,7.07670566,1619.2,1619.1,0.05]
[1744684603168,0.90082566,1619.2,1619.1,0.05]
[1744684603350,7.07670566,1619.2,1619.1,0.05]
[1744684603667,8.58299793,1619.2,1619.1,0.05]
[1744684605935,0.13372566,1619.2,1619.1,0.05]
[1744684606136,6.30960566,1619.2,1619.1,0.05]
[1744684606538,7.10210566,1619.2,1619.1,0.05]
[1744684606870,12.85910566,1619.2,1619.1,0.05]
[1744684608246,13.40910566,1619.2,1619.1,1e-05]
[1744684608451,0.763,1618.8,1618.5,6.17835]
[1744684608672,0.12679492,1618.7,1618.5,6.17835]
[1744684608858,6.17742,1618.8,1618.5,6.17835]
[1744684609034,0.12679492,1618.7,1618.5,6.17835]
[1744684609643,12.35445,1618.9,1618.5,6.17835]
[1744684609841,0.12679492,1618.8,1618.5,6.17835]
[1744684610485,0.12679492,1618.8,1618.7,6.17779]
[1744684610682,6.988,1619.0,1618.6,6.7146]
[1744684610891,6.988,1619.0,1618.6,12.89263]
[1744684610892,0.12563933,1618.9,1618.6,12.89263]
[1744684611182,0.12563933,1618.9,1618.7,6.17757]
[1744684611403,6.1778,1618.7,1618.5,0.4736686]
[1744684611694,6.98106,1618.5,1618.4,1e-05]
[1744684611867,9.55845734,1618.5,1618.4,1e-05]
[1744684612067,9.68475703,1618.5,1618.4,1e-05]
[1744684612294,7.5322,1618.2,1618.1,7.7e-06]
[1744684612508,6.18177,1617.7,1617.3,6.71973]
[1744684612690,12.74189,1617.8,1617.3,6.71961]
[1744684612892,6.30302278,1617.7,1617.3,6.71959]
[1744684613100,0.12126278,1617.7,1617.4,6.18264]
[1744684614171,0.12126278,1617.7,1617.3,6.7195]
[1744684614371,0.12126278,1617.7,1617.3,0.5366]
[1744684614691,5.758,1617.8,1617.5,6.18217]
[1744684615114,5.758,1617.8,1617.3,0.5366]
[1744684615115,11.93928,1617.8,1617.3,6.71972]
[1744684615308,12.51508,1617.8,1617.3,6.18312]
[1744684615703,6.18179,1617.7,1617.3,6.18312]
[1744684615903,12.51508,1617.8,1617.4,6.18276]
[1744684616084,18.6966,1617.8,1617.4,6.1827]
[1744684616278,18.6966,1617.8,1617.3,6.18299]
[1744684616279,8.82293,1617.7,1617.2,6.18329]
[1744684616503,8.82293,1617.7,1617.3,6.18311]
[1744684616703,6.18205,1617.6,1617.2,6.18329]
[1744684617212,8.82293,1617.7,1617.3,6.183]
[1744684617400,8.82293,1617.7,1617.2,6.18329]
[1744684617714,7.064513,1617.6,1617.2,6.18332]
[1744684618011,0.882293,1617.6,1617.2,12.36666]
[1744684618317,0.882293,1617.6,1617.1,0.05]
[1744684618615,6.18253,1617.5,1617.1,6.2339]
[1744684618835,2.64116,1617.7,1617.1,0.05]
[1744684618994,6.95214,1618.0,1617.6,6.18199]
[1744684619187,13.13291,1618.0,1617.6,6.18199]
[1744684619387,6.18085,1617.9,1617.5,6.18227]
[1744684619579,6.95214,1618.0,1617.6,6.18192]
[1744684619781,0.7715,1618.0,1617.5,0.46084671]
[1744684619982,6.18087,1617.9,1617.1,6.23379]
[1744684620181,12.36197,1617.9,1617.4,6.1824]
[1744684620379,12.36198,1617.9,1617.5,6.18235]
[1744684620611,12.36198,1617.9,1617.4,6.1824]
[1744684620612,6.1813,1617.8,1617.4,6.1824]
[1744684620812,6.1813,1617.8,1617.4,12.36491]
[1744684621008,8.21974,1618.0,1617.5,6.18229]
[1744684621213,8.21974,1618.0,1617.6,6.18179]
[1744684621415,8.21974,1618.0,1617.6,6.1817]
[1744684621416,2.03926,1618.0,1617.6,6.1817]
[1744684621617,0.7745,1618.2,1618.0,6.18033]
[1744684621802,0.7745,1618.2,1617.8,0.5366]
[1744684621803,0.7745,1618.7,1618.1,0.5366]
[1744684622121,6.1784,1618.6,1618.2,6.17962]
[1744684622292,6.17895,1618.4,1618.1,0.5366]
[1744684622614,6.797015,1618.4,1617.9,6.71722]
[1744684623319,6.17946,1618.3,1617.9,0.5366]
[1744684623514,6.17974,1618.2,1617.9,0.5366]
[1744684623717,5.88,1618.4,1618.0,0.06180615]
[1744684623921,12.0582,1618.6,1618.2,6.17968]
[1744684624120,1.899453,1618.6,1618.3,6.17916]
[1744684624286,13.11439,1618.7,1618.3,6.17916]
[1744684624817,6.17878,1618.5,1618.2,0.5366]
[1744684625182,6.93643,1618.7,1618.0,0.5366]
[1744684625387,6.93643,1618.7,1618.3,6.17913]
[1744684625601,6.93643,1618.7,1618.2,6.17968]
[1744684625800,6.17837,1618.6,1618.2,6.17968]
[1744684626004,8.218073,1618.7,1618.3,6.17913]
[1744684626222,14.396153,1618.7,1618.3,6.17913]
[1744684626816,6.17831,1618.6,1618.2,6.17969]
[1744684627122,12.35675,1618.6,1618.2,6.17969]
[1744684627299,13.7964393,1618.6,1618.2,6.17969]
[1744684627501,7.6179993,1618.6,1618.2,6.17969]
[1744684627703,8.217963,1618.7,1618.2,6.17953]
[1744684628002,6.17878,1618.5,1618.1,6.18006]
[1744684628202,12.35766,1618.5,1618.1,6.18006]
[1744684628604,6.17899,1618.4,1618.0,7.17665614]
[1744684628804,13.593947,1618.4,1618.0,6.71703]
[1744684629091,13.593947,1618.4,1618.0,0.5366]
[1744684629424,6.17933,1618.3,1618.0,0.5366]
[1744684629927,12.35902,1618.3,1617.9,6.18063]
[1744684630138,7.115777,1618.4,1617.6,0.5366]
[1744684630341,6.1809,1617.9,1617.7,4.0]
[1744684630631,6.18123,1617.8,1617.7,4.0]
[1744684630831,6.18123,1617.8,1617.4,18.7819]
[1744684631001,12.3627,1617.8,1617.4,12.59919]
[1744684631208,6.18179,1617.7,1617.3,6.18309]
[1744684631444,6.18202,1617.6,1617.3,6.18309]
[1744684631805,6.18273,1617.5,1617.1,0.05]
[1744684632138,12.36548,1617.5,1617.1,0.05]
[1744684632345,6.18315,1617.3,1617.1,0.05]
[1744684632542,12.36656,1617.3,1617.1,0.05]
[1744684632746,0.8033,1617.2,1617.1,0.05]
[1744684633250,6.98682,1617.2,1617.1,0.05]
[1744684635442,12.86782,1617.2,1617.1,0.05]
[1744684635603,14.772917,1617.2,1617.1,0.05]
[1744684637527,2.708397,1617.2,1617.1,0.05]
[1744684637734,0.8033,1617.2,1617.1,0.05]
[1744684638043,6.98682,1617.2,1617.1,0.05]
[1744684642236,6.98682,1617.2,1617.1,1e-05]
[1744684642237,13.63812,1617.2,1617.1,1e-05]
[1744684642437,16.08812,1617.2,1617.1,1e-05]
[1744684643214,13.08812,1617.2,1617.1,1e-05]
[1744684643421,15.015247,1617.2,1617.1,1e-05]
[1744684645343,1.927127,1617.2,1617.1,1e-05]
[1744684645639,5.884,1617.3,1617.1,6.18375]
[1744684646642,5.884,1617.3,1617.1,1e-05]
[1744684647838,54.37564,1617.7,1617.2,6.18352]
[1744684647839,49.0018,1617.7,1617.2,6.18352]
[1744684648042,48.194,1617.7,1617.5,6.1823]
[1744684648342,13.38199,1617.8,1617.5,6.1823]
[1744684648643,12.06525,1617.8,1617.5,6.1823]
[1744684648940,5.884,1617.8,1617.5,6.18218]
[1744684649144,5.884,1617.8,1617.6,12.36374]
[1744684649311,18.24444,1618.1,1617.7,6.18161]
[1744684649513,12.06409,1618.1,1617.7,6.18161]
[1744684649714,6.1805,1618.0,1617.6,6.18183]
[1744684649942,20.148289,1618.1,1617.7,6.18154]
[1744684650128,6.18063,1618.0,1617.6,6.18183]
[1744684650324,6.18063,1618.0,1617.6,12.3636]
[1744684650551,13.967889,1618.1,1617.7,12.36289]
[1744684650723,13.967889,1618.1,1617.8,6.18108]
[1744684650724,5.884,1618.1,1617.8,6.18108]
[1744684651047,12.06412,1618.1,1617.8,6.18108]
[1744684651243,55.15235,1618.4,1617.7,6.18161]
[1744684651544,6.6343,1618.8,1618.4,6.17882]
[1744684651744,6.17798,1618.7,1618.3,6.71576]
[1744684652046,6.17819,1618.6,1618.1,6.71642]
[1744684652211,7.29773,1618.8,1618.1,0.5366]
[1744684652411,6.54443,1618.8,1618.5,0.5366]
[1744684652611,6.93028,1619.0,1618.5,0.5366]
[1744684652612,0.7533,1619.0,1618.5,0.5366]
[1744684652844,6.17741,1618.8,1618.5,0.5366]
[1744684653337,12.35499,1618.8,1618.5,0.5366]
[1744684653533,1.310829,1618.8,1618.5,6.71492]
[1744684653738,6.17676,1619.0,1618.6,12.35591]
[1744684653932,66.44704,1619.1,1618.7,6.17775]
[1744684654139,6.6323,1619.6,1618.9,6.17703]
[1744684654450,6.17625,1619.2,1618.8,0.5366]
[1744684654750,6.17629,1619.1,1618.8,0.5366]
[1744684654950,0.11638764,1619.0,1618.8,0.5366]
[1744684655133,6.17513,1619.4,1618.9,6.17668]
[1744684655335,0.12629969,1619.3,1618.9,12.3535]
[1744684655538,7.42343997,1619.3,1618.9,6.17701]
[1744684655739,0.12629969,1619.2,1618.9,6.17682]
[1744684656049,0.12629969,1619.2,1618.9,12.35362]
[1744684656222,0.12629969,1619.2,1618.8,0.5366]
[1744684656223,0.12629969,1619.2,1619.0,6.17634]
[1744684656632,6.17515,1619.4,1619.0,6.17634]
[1744684656828,0.12629969,1619.1,1619.0,12.35283]
[1744684657144,6.54223,1619.5,1619.2,6.17587]
[1744684658812,6.54223,1619.5,1619.0,6.17639]
[1744684659039,6.54223,1619.5,1618.8,0.5366]
[1744684659040,0.654223,1619.4,1618.8,0.5366]
[1744684659233,6.17681,1619.0,1618.6,12.89244]
[1744684659435,6.17551,1619.3,1618.6,7.18738557]
[1744684659644,6.17551,1619.3,1618.8,6.17731]
[1744684659832,6.793491,1619.2,1618.8,6.17719]
[1744684660037,6.793491,1619.2,1618.8,12.35443]
[1744684660253,6.793491,1619.2,1618.8,6.17719]
[1744684660549,6.793491,1619.2,1618.7,6.17776]
[1744684660728,6.1764,1619.1,1618.7,6.17776]
[1744684660919,6.793491,1619.2,1618.8,6.17715]
[1744684661118,6.793491,1619.2,1618.8,12.35439]
[1744684661427,6.17523,1619.4,1619.0,6.17665]
[1744684661749,12.05389,1619.5,1619.1,6.17618]
[1744684661949,5.879,1619.5,1619.1,6.17611]
[1744684662116,12.0539,1619.5,1619.1,6.17611]
[1744684662323,12.0539,1619.5,1619.1,6.17609]